Cogmind - Beta 17.1 @@@ ROGUE MODE // 2026.09.12 @ 20:07:35 Player: Ethranok Result: Destroyed by G-47 Trooper with Particle Gun Performance ------------- Evolutions (0) 0 Regions Visited (2) 400 Robots Destroyed (15) 75 Value Destroyed (474) 474 Prototype IDs (0) 0 Alien Tech Used (0) 0 Bonus (60) 60 TOTAL SCORE: 1009 Bonus ------- Follower Combat Kills 60 Cogmind --------- Core Integrity 0/250 Matter 281/300 Energy 100/100 System Corruption 0% Temperature Cool (9) Movement Treading (320) Ox2 Location -10/Mines Parts ------- > --- POWER (1) -------- (None) > --- PROPULSION (2) --- Light Treads > --- UTILITY (2) ------ High-capacity Storage Unit Signal Interpreter > --- WEAPON (2) ------- Assault Rifle > --- INVENTORY (20) --- Ion Engine Light Nuclear Core Light Treads High-capacity Matter Pod (188) Sensor Array Core Shielding Power Shielding Light Armor Plating Light Armor Plating Light Armor Plating Light Armor Plating Light Armor Plating Light Armor Plating Assault Rifle Assault Rifle Assault Rifle Grenade Launcher Grenade Launcher Mining Laser Peak State ------------ > --- POWER ------------ Light Ion Engine > --- PROPULSION ------- Light Treads Light Treads > --- UTILITY ---------- High-capacity Storage Unit Light Armor Plating > --- WEAPON ----------- Assault Rifle Light Cannon > --- INVENTORY -------- Light Ion Engine Light Nuclear Core Light Treads High-capacity Matter Pod Sensor Array Core Shielding Power Shielding Light Armor Plating Light Armor Plating Light Armor Plating Light Armor Plating Small Laser Assault Rifle Assault Rifle Assault Rifle Assault Rifle Grenade Launcher Mining Laser [Rating: 9] Favorites ----------- Power Light Ion Engine Engine Light Ion Engine Propulsion Light Treads Treads Light Treads Utility High-capacity Storage Unit Storage High-capacity Storage Unit Processor Signal Interpreter Protection Light Armor Plating Weapon Assault Rifle Energy Gun EM Pulse Gun Ballistic Gun Assault Rifle Ballistic Cannon Light Cannon Launcher Grenade Launcher Build | -11 -10 -10 ------- Run | Yrd Mat Min Slots Evolved . | . . . Power . | . . . Propulsion . | . . . Utility . | . . . Weapon . | . . . Parts Attached 16 | 6 8 2 Power 2 | 1 . 1 Engine 2 | 1 . 1 Core . | . . . Reactor . | . . . Propulsion 3 | 2 1 . Treads 3 | 2 1 . Leg . | . . . Wheel . | . . . Hover . | . . . Flight . | . . . Utility 5 | 1 4 . Device . | . . . Storage 3 | 1 2 . Processor 1 | . 1 . Hackware . | . . . Protection 1 | . 1 . Artifact . | . . . Weapon 6 | 2 3 1 Energy Gun 2 | 2 . . Energy Cannon . | . . . Ballistic Gun 2 | . 1 1 Ballistic Cannon 1 | . 1 . Launcher 1 | . 1 . Special Weapon . | . . . Impact Weapon . | . . . Slashing Weapon . | . . . Piercing Weapon . | . . . Special Melee Weapon . | . . . Unidentified Prototypes . | . . . Parts Lost 4 | . . 4 Power 1 | . . 1 Propulsion 1 | . . 1 Utility . | . . . Weapon 2 | . . 2 Highest Loss Streak 4 | . . 4 To Critical Strikes . | . . . Average Backups 14 | 2 13 19 Power 1 | 1 1 1 Propulsion . | . . 1 Utility 6 | . 6 10 Weapon 4 | 1 4 6 Tool/Special . | . . . Unused Backups 18 | . 1 17 Power 3 | . . 3 Propulsion . | . . . Utility 9 | . . 9 Weapon 6 | . 1 5 Tool/Special . | . . . Average Slot Usage (%) 96 | . 95 99 Engine 14 | . 14 14 Treads 27 | . 27 28 Storage 14 | . 14 14 Processor 4 | . 2 14 Protection 6 | . 8 . Energy Gun 3 | . 4 . Ballistic Gun 13 | . 13 13 Ballistic Cannon 10 | . 9 14 Peak Build Rating 9 | 6 9 9 Average Rating 8 | 3 7 8 On Entrance 5 | . 6 9 Avg Prop Armor Cover (%) . | . . . Naked Turns . | . . . Heaviest Build 51 | 12 51 50 Greatest Support 40 | 40 40 40 Greatest Overweight (x) 15 | 2 15 1 Average Overweight (x) . | . . 1 Largest Inventory Capacity 20 | 8 20 20 Average Capacity 17 | 7 17 20 Most Carried 20 | 6 20 20 Average Carried 14 | 2 13 19 Final Capacity 20 | 8 20 20 Final Carried 19 | 2 19 19 Class Distribution -------------------- 100% | Mutant Dominant Class ---------------- Mutant | -10/Materials Mutant | -10/Mines Resources | -11 -10 -10 ----------- Run | Yrd Mat Min Matter Collected 692 | 205 281 206 Remotely . | . . . Salvage Created 554 | . 554 . Parts 31 | . 31 . Haulers Intercepted 1 | . 1 . Recyclers Shooed . | . . . Parts Field Recycled . | . . . Retrieved Matter . | . . . Parts Self-Destructed . | . . . Prevented . | . . . Parts Restored . | . . . Kills | -11 -10 -10 ------- Run | Yrd Mat Min Combat Hostiles Destroyed 11 | . 11 . Guns 7 | . 7 . Cannons 1 | . 1 . AOE 3 | . 3 . Classes Destroyed 4 | . 4 . Tunneler 1 | . 1 . Hauler 1 | . 1 . Watcher 2 | . 2 . Grunt 11 | . 11 . Best Kill Streak 3 | . 3 . Combat Bots Only 3 | . 3 . Max Kills in Single Turn 2 | . 2 . Gunslinging . | . . . Exploded 2 | . 2 . Melee . | . . . Uniques/NPCs Destroyed . | . . . Combat | -11 -10 -10 -------- Run | Yrd Mat Min Hostile Shots Fired 57 | . 31 26 Missed 10 | . 8 2 Hits 47 | . 23 24 Projectile 47 | . 23 24 AOE 15 | . . 15 Part Disruptions 1 | . . 1 Damage Taken 1017 | . 332 685 Core 253 | . 69 184 Absorbed by Shields . | . . . Core Remaining (%) 100 | 100 . . Volleys Fired 42 | . 38 4 Largest 2 | . 2 2 Hottest 60 | . 60 50 Shots Fired 71 | . 64 7 Gun 64 | . 60 4 Cannon 6 | . 3 3 Launcher 1 | . 1 . Special . | . . . Kinetic 47 | . 40 7 Thermal . | . . . Explosive 1 | . 1 . Electromagnetic 23 | . 23 . Robot Hit Streak 4 | . 4 2 Robot Miss Streak 4 | . 4 3 Penetration Max . | . . . Secondary Targets . | . . . Shots Hit Robots 42 | . 39 3 Core Hits 26 | . 26 . Critical Kills 1 | . 1 . Critical Parts Destroyed . | . . . Critical Strikes 4 | . 3 1 Destroy 1 | . 1 . Blast 2 | . 1 1 Corrupt 1 | . 1 . Melee Attacks . | . . . Impact . | . . . Slashing . | . . . Piercing . | . . . Sneak Attacks . | . . . Combat Hostiles . | . . . Follow-up Attacks . | . . . Damage Inflicted 840 | . 781 59 Guns 499 | . 478 21 Cannons 86 | . 53 33 Explosions 227 | . 227 . Melee . | . . . Ramming 28 | . 23 5 Kinetic 382 | . 328 54 Thermal 204 | . 204 . Explosive 23 | . 23 . Electromagnetic 203 | . 203 . Impact . | . . . Slashing . | . . . Piercing . | . . . Highest Corruption . | . . . Average Corruption . | . . . Corruption Purged . | . . . Corruption Blocked . | . . . Overload Shots . | . . . Overflow Damage . | . . . Projectiles . | . . . Explosions . | . . . Melee . | . . . Knockbacks 1 | . . 1 Impact . | . . . Kinetic 1 | . . 1 Secondary . | . . . Self-Inflicted Damage 6 | . 6 . Shots 1 | . 1 . Rammed 6 | . 5 1 Targets Rammed 6 | . 5 1 Kicked . | . . . Crushed . | . . . Highest Temperature 129 | . 129 5 Average Temperature 41 | . 42 3 Received Heat Transfer 217 | . 150 67 Siege Activations . | . . . Martial Activations . | . . . Shielding Activations . | . . . Robots Disrupted . | . . . Combat Hostiles . | . . . Robots Corrupted . | . . . Combat Hostiles . | . . . Parts Fried 1 | . 1 . Impact Corruptions . | . . . Robots Melted . | . . . Combat Hostiles . | . . . Parts Melted . | . . . Heat Transferred 350 | . 350 . Parts Sabotaged . | . . . Parts Stolen . | . . . Parts Stripped . | . . . Power Chain Reactions 3 | . 3 . Alert | -11 -10 -10 ------- Run | Yrd Mat Min Maximum Alert Level . | . . . Low Security (%) 100 | 100 100 100 Level 1 . | . . . Level 2 . | . . . Level 3 . | . . . Level 4 . | . . . Level 5 . | . . . High Security . | . . . Max Security . | . . . Peak Influence 129 | . 129 56 Initial . | . . . Average 19 | . 23 6 Influence Increases 430 | . 374 56 Destroy 0b10 Robot/C 260 | . 220 40 Destroy 0b10 Robot/NC 20 | . 20 . Destroy Leader 76 | . 66 10 Allied During Kill 6 | . . 6 Successful Hack 6 | . 6 . Disable Machine 30 | . 30 . Destroy Structure 17 | . 17 . Lose Combat Pursuer 15 | . 15 . Influence Decreases 430 | . 374 56 Time Decay 430 | . 374 56 Squads Dispatched 4 | . 4 . Investigation 2 | . 2 . Extermination . | . . . Reinforcement 2 | . 2 . Assault . | . . . Garrison . | . . . Intercept . | . . . Searches Triggered . | . . . Construction Impeded . | . . . Haulers Reinforced . | . . . Active Scanning Responses . | . . . Cargo Convoy Interrupts . | . . . Stealth | -11 -10 -10 --------- Run | Yrd Mat Min Distress Signals 1 | . 1 . Communications Jammed . | . . . Distress Signals . | . . . Times Spotted 34 | . 23 11 Peak Tracking Total 8 | . 4 8 Tactical Retreats 1 | . 1 . Traps | -11 -10 -10 ------- Run | Yrd Mat Min Traps Triggered 5 | . 5 . Indirectly . | . . . Trap Hack Attempts . | . . . Triggered . | . . . Disarmed . | . . . Reprogrammed . | . . . Reused . | . . . Traps Extracted . | . . . Installed . | . . . Triggered . | . . . Machines | -11 -10 -10 ---------- Run | Yrd Mat Min Machines Disabled 2 | . 2 . Max in Single Turn 1 | . 1 . Machines Repaired . | . . . Machines Dismantled . | . . . Machines Sabotaged . | . . . Overloaded Fab Kills . | . . . Hacking | -11 -10 -10 --------- Run | Yrd Mat Min Machines Accessed 4 | . 4 . Terminals 2 | . 2 . Fabricators . | . . . Repair Stations . | . . . Recycling Units 2 | . 2 . Scanalyzers . | . . . Garrison Access . | . . . Total Hacks 10 | . 10 . Successful 3 | . 3 . Failed 6 | . 6 . Catastrophic 1 | . 1 . Database Lockouts 1 | . 1 . Manual 9 | . 9 . Terminals 6 | . 6 . Fabricators . | . . . Repair Stations . | . . . Recycling Units 4 | . 4 . Scanalyzers . | . . . Garrison Access . | . . . Terminal Hacks 2 | . 2 . Robot Analysis 1 | . 1 . Terminal Index 1 | . 1 . Fabricator Hacks . | . . . Repair Station Hacks . | . . . Recycling Unit Hacks 1 | . 1 . Report Inventory 1 | . 1 . Scanalyzer . | . . . Garrison Access Hacks . | . . . Unauthorized Hacks . | . . . Terminals . | . . . Fabricators . | . . . Repair Stations . | . . . Recycling Units . | . . . Scanalyzers . | . . . Garrison Access . | . . . Data Cores Recovered . | . . . Used . | . . . Hacking Detections 3 | . 3 . Full Trace Events 2 | . 2 . Feedback Events . | . . . Feedback Blocked . | . . . Robot Schematics Acquired . | . . . Robots Built . | . . . Authchips . | . . . Time . | . . . Total Robot Build Rating . | . . . Part Schematics Acquired . | . . . Parts Built . | . . . Authchips . | . . . Time . | . . . Total Part Build Rating . | . . . Part Studies Acquired . | . . . Parts Repaired . | . . . Time . | . . . Parts Recycled . | . . . Recycled Matter . | . . . Retrieved Matter . | . . . Retrieved Components . | . . . Parts Scanalyzed . | . . . Part Schematics Acquired . | . . . Parts Damaged . | . . . Bothacking | -11 -10 -10 ------------ Run | Yrd Mat Min Used RIF Installer . | . . . Robots Hacked . | . . . Non-combat . | . . . Combat . | . . . Robot Hacks Applied . | . . . Relay Couplers Released . | . . . Fabnet Peak Effective % . | . . . Robots Rewired . | . . . Allies Hacked . | . . . Hacks Repelled . | . . . Allies | -11 -10 -10 -------- Run | Yrd Mat Min Total Allies 2 | . . 2 Largest Group 2 | . . 2 Highest-Rated Group 45 | . . 45 Highest-Rated Ally 31 | . . 31 Total Orders . | . . . Ally Attacks 12 | . . 12 Total Damage 234 | . . 234 Kills 4 | . . 4 Allies Corrupted . | . . . Allies Melted . | . . . Intel | -11 -10 -10 ------- Run | Yrd Mat Min Active Infowar (turns) . | . . . Robot Analysis Total 1 | . 1 . Derelict Logs Recovered 2 | . . 2 Drone Launches . | . . . Drone Recoveries . | . . . Exploration | -11 -10 -10 ------------- Run | Yrd Mat Min Turns Passed 2456 | 64 1932 460 Spaces Moved 977 | 40 760 177 Core 25 | 21 4 . Treads 952 | 19 756 177 Legs . | . . . Wheels . | . . . Hover . | . . . Flight . | . . . Fastest Speed 50 | 50 160 240 Average Speed 221 | 127 222 240 Slowest Speed 800 | 160 800 240 Overloaded Moves . | . . . Propulsion Burnouts . | . . . Robots Hopped . | . . . Potential Cave-ins . | . . . Cave-ins Triggered . | . . . Exploration Rate (%) 42 | 4 95 29 Regions Visited 2 Branch Regions 1 Pre-discovered Areas 1 | . . 1 Known Exits Taken 1 | . 1 . Unknown Exits Taken 1 | 1 . . Scrap Searched 1 | . . 1 Spaces Dug . | . . . Terrain Destroyed 12 | . 12 . Melee . | . . . Projectile . | . . . AOE 12 | . 12 . Terrain Rammed . | . . . Walls Destroyed . | . . . Machines Disabled . | . . . Actions | -11 -10 -10 --------- Run | Yrd Mat Min Total 1190 | 53 932 205 Wait 94 | . 78 16 Move 975 | 39 759 177 Hop . | . . . Pick Up 42 | 8 31 3 Fast Attach . | . . . Attach 12 | 6 5 1 Detach . | . . . Swap 8 | . 7 1 Drop 11 | . 9 2 Fire 42 | . 38 4 Melee . | . . . Ram . | . . . Kick . | . . . Crush 6 | . 5 1 Escape Stasis . | . . . Rewire . | . . . Trap . | . . . Miscellaneous . | . . . Route ------- -11/Scrapyard -10/Materials (discovered 6 exits: *Mat x3 / *Min x2 / *Sub) -10/Mines History --------- Turn | Location | Event 9 | -11/Scrapyard | Discovered new exit (range 16) 65 | -11/Scrapyard | Entered Materials 305 | -10/Materials | Build established: Mutant 350 | -10/Materials | Discovered new exit (range 15) 446 | -10/Materials | Central database locked down 534 | -10/Materials | Discovered new exit (range 8) 750 | -10/Materials | Discovered new exit (range 7) 1170 | -10/Materials | Discovered new exit (range 11) 1435 | -10/Materials | Discovered new exit (range 9) 1798 | -10/Materials | Identified exit to Materials 1918 | -10/Materials | Discovered new exit (range 10) 1933 | -10/Materials | Identified exit to Mines 1964 | -10/Materials | Identified exit to Subcaves 1997 | -10/Materials | Entered Mines 2062 | -10/Mines | Found DCF Scrap (13 items) 2294 | -10/Mines | Learned location of Storage (-8) 2333 | -10/Mines | Assembled infested the area 2448 | -10/Mines | Core integrity fell below 50% 2457 | -10/Mines | Destroyed by G-47 Trooper with Particle Gun Last Messages --------------- 02411_ DH-1SF(z) destroyed. 02418_ C-45 Heavy ARC bursts open, deploying its payload. 02418_ D-53 Grenadier unfolds itself. 02424_ as-60500 destroyed. 02426_ Assault Rifle destroyed. 02428_ The unstable cave ceiling collapses. 02429_ as-17478 destroyed. 02429_ as-06295 destroyed. 02431_ as-52456 destroyed. 02431_ as-63719 destroyed. 02431_ as-70729 destroyed. 02432_ The unstable cave ceiling collapses. 02445_ Pulverizer disabled. 02447_ D-53 Grenadier Cmb. Airjet blasted off. 02449_ The unstable cave ceiling collapses. 02450_ Lgt. Treads destroyed. 02450_ D-53 Grenadier knocked back. 02455_ Lgt. Cannon destroyed. 02455_ Ion Engine destroyed. 02456_ The unstable cave ceiling collapses. Map ----- +----------------------------------------------------+ | ???????????????????????????????????????###???????? | | ??????????????????##########??????????# ##??????? | | ??????????????????# #????????## #??????? | | ??????????????????# *#####???## ######?? | | ??????????????????# """ =!] *#?### *%??? | | ??????????????????# """ ### ### """ ???? | | ??????????????????# """ #?#!## """ #?????? | | ???####????######## #?#!### """ #?????? | | ??## ##???# #?#!#?# ##?????? | | ??# ##??# ###### #?#=#?# ##??????? | | ??# ##?# #????##########?# # # % ##???????? | | ?## ### #???????????????# # # #???????? | | ?# #???????????????# # # % #???????? | | ?# #### #???????????##### # #???????? | | ?## #??# #???????????# ?????????? | | ??# ##??# #?# ###### # ####??????? | | ??# ??? #?# " #??????? | | ??# #???###?# "%" g #??????? | | ??# ##???????????######## ##g ## #??????? | | ??# #???????????????????# ??# #??????? | | ??# ?????????????????##### ????# ####### | | ??# ????????????????## # ##????# ! | | ??# ???????????????## ##?????##########% | | ??# ???????????????# ###????????????????? | | ?? ???????????????# d ########??????????? | | ?? ???????????????# @ d #??????????? | | ????????????????????# " """ #??????????? | | ????????????????????# " """ #??????????? | | ????????????????????## " """ #??????????? | | ?????????????????????# """ """ #??????????? | | ?????????????????????# #??????????? | | ?????????????????????# """ """ """ #??????????? | | ?????????????????????# """ """ """ #??????????? | | ?????????????????????# """ """ """ #??????????? | | ?????????????????????# """ """ """ #??????????? | | ?????????????????????# #??????????? | | ?????????????????????##################??????????? | | ?????????????????????????????????????????????????? | | ?????????????????????????????????????????????????? | | ?????????????????????????????????????????????????? | | ?????????????????????????????????????????????????? | | ?????????????????????????????????????????????????? | | ?????????????????????????????????????????????????? | | ?????????????????????????????????????????????????? | | ?????????????????????????????????????????????????? | | ?????????????????????????????????????????????????? | | ?????????????????????????????????????????????????? | | ?????????????????????????????????????????????????? | | ?????????????????????????????????????????????????? | | ?????????????????????????????????????????????????? | +----------------------------------------------------+ Best States ------------- Heat Dissipation 25 Energy Generation 10 Energy Capacity 250 Matter Stores 300 Matter Capacity 300 Sight Range 16 Terrain Scan Density 10 Armor Coverage 150 Evasion (%) 50 Recoil Reduction 2 Item Schematics ----------------- None Robot Schematics ------------------ None Fabricated ------------ Nothing Repaired ---------- Nothing Studied --------- None Alien Tech Used ----------------- None Achievements -------------- None Challenges ------------ None Game ------ Seed LaunchMatterAssimilator Manual? 0 Play Time 00:19:21 Cumulative 16.7 hours Start 2026.09.12 @ 19:51:41 End 2026.09.12 @ 20:07:35 Sessions 1 Manual Loads 0 Difficulty Rogue Special Mode None Game No. 25 Rogue 25 Adventurer 0 Explorer 0 Win Type - Total 0 Types 0/0/0/0/0/0/0/0/0/0 Lore% 7 Gallery% 12 Achievement% 13 Wizard Run 0 Options --------- Layout 0 ASCII 0 Keyboard 0 Movement Arrows Keybinds 0 Fullscreen 1 Font 24/Smallcaps Map View 56x25 Zoom Use 74% Tactical HUD 1 Map Filters NONE Filters NONE Steam 1 RUN: 6d9bc8ab-250e-42b8-85a9-bc94056c0715